[Event "Kragero Resort B 2020"]
[Site "Kragero"]
[Date "2020.02.23"]
[Round "9.10"]
[White "Haug, Havard"]
[Black "Nordquelle, Amelia"]
[Result "1-0"]
[ECO "B22"]
[WhiteElo "1626"]
[BlackElo "1768"]
[Annotator "NA"]
[PlyCount "159"]
[EventDate "2020.02.19"]
[EventType "swiss"]
[EventCountry "NOR"]
[SourceTitle "playchess.com"]
[Source "ChessBase"]
[SourceQuality "1"]
[TimeControl "5400+30"]

1. e4 {[%emt 0:23:15]} c5 {[%emt 0:00:10]} 2. c3 {[%emt 0:00:00]} d5 {[%emt 0:04:13]} 3. exd5 {[%emt 0:00:00]} Qxd5 {[%emt 0:00:05]} 4. d4 {[%emt 0:00:00]} e6 {[%emt 0:07:12]} 5. Be3 {[%emt 0:00:00]} cxd4 {[%emt 0:02:54]} 6. cxd4 {[%emt 0:00:00]} Nf6 {[%emt 0:02:54]} 7. Nc3 {[%emt 0:00:00]} Qd8 {[%emt 0:05:26]} 8. Nf3 {[%emt 0:00:00]} a6 {[%emt 0:03:38]} 9. Bc4 {[%emt 0:00:00]} b5 {[%emt 0:00:45]} 10. Bd3 {[%emt 0:00:00]} Bb7 {[%emt 0:01:24]} 11. a3 {[%emt 0:00:00]} Be7 {[%emt 0:04:39]} 12. O-O {[%emt 0:00:00]} O-O {[%emt 0:00:28]} 13. Ne5 {[%emt 0:00:00]} Nd5 {[%emt 0:10:24]} 14. Qh5 {[%emt 0:00:00]} g6 {[%emt 0:07:40]} 15. Qh6 {[%emt 0:00:00]} Nd7 {[%emt 0:05:17]} 16. Nxd7 {[%emt 0:00:00]} Qxd7 {[%emt 0:01:08]} 17. Ne4 {[%emt 0:00:00]} Nxe3 {[%emt 0:03:42]} 18. fxe3 {[%emt 0:00:00]} Qd8 {[%emt 0:05:26]} 19. Rad1 {[%emt 0:02:43]} f5 {[%emt 0:06:35]} 20. Nc3 {[%emt 0:02:07]} Bg5 {[%emt 0:03:16]} 21. Qh3 {[%emt 0:01:07]} Qb6 {[%emt 0:02:53]} 22. Kh1 {[%emt 0:01:20]} Rad8 {[%emt 0:01:16]} 23. Bb1 {[%emt 0:02:30]} Rfe8 {[%emt 0:01:15]} 24. Ba2 {[%emt 0:01:10]} Kh8 {[%emt 0:00:11]} 25. Qg3 {[%emt 0:03:47]} Bh6 {[%emt 0:02:21]} 26. Qh3 {[%emt 0:02:43]} Kg7 {[%emt 0:01:15]} 27. Qg3 {[%emt 0:00:41]} Kh8 {[%emt 0:00:15]} 28. Qh3 {[%emt 0:00:15]} Bg7 {[%emt 0:00:08]} 29. Qg3 {[%emt 0:02:14]} a5 {[%emt 0:02:42]} 30. Bb3 {[%emt 0:02:29]} b4 {[%emt 0:02:08]} 31. Na4 {[%emt 0:00:49]} Qb5 {[%emt 0:00:12]} 32. Nc5 {[%emt 0:00:08]} bxa3 {[%emt 0:00:22]} 33. Ba4 {[%emt 0:00:13]} Qb6 {[%emt 0:06:18]} 34. Bxe8 {[%emt 0:00:26]} Rxe8 {[%emt 0:00:02]} 35. Nxb7 {[%emt 0:00:15]} Qxb7 {[%emt 0:00:04]} 36. bxa3 {[%emt 0:00:05]} Qb3 {[%emt 0:01:15]} 37. Rb1 {[%emt 0:00:41]} Qxa3 {[%emt 0:00:19]} 38. Rb8 {[%emt 0:00:03]} Qf8 {[%emt 0:03:37]} 39. Rfb1 {[%emt 0:00:17]} e5 {[%emt 0:00:05]} 40. Rxe8 {[%emt 0:01:00]} Qxe8 {[%emt 0:00:06]} 41. dxe5 {[%emt 0:00:54]} Bxe5 {[%emt 0:00:07]} 42. Qe1 {[%emt 0:03:22]} Bc7 {[%emt 0:01:54]} 43. Qc3+ {[%emt 0:04:09]} Qe5 {[%emt 0:00:01]} 44. Qxe5+ {[%emt 0:00:10]} Bxe5 {[%emt 0:00:06]} 45. Rb7 {[%emt 0:00:13]} Bd6 {[%emt 0:03:34]} 46. Kg1 {[%emt 0:01:04]} Bc5 {[%emt 0:00:20]} 47. Kf2 {[%emt 0:02:07]} f4 {[%emt 0:00:09]} 48. Kf3 {[%emt 0:00:11]} fxe3 {[%emt 0:01:48]} 49. Rb5 {[%emt 0:00:14]} Bb4 {[%emt 0:00:26]} 50. Kxe3 {[%emt 0:00:09]} Kg7 {[%emt 0:00:03]} 51. Rb7+ {[%emt 0:00:12]} Kh6 {[%emt 0:00:34]} 52. Kf3 {[%emt 0:00:18]} Bc5 {[%emt 0:01:06]} 53. h4 {[%emt 0:00:42]} Bb4 {[%emt 0:01:08]} 54. g4 {[%emt 0:00:21]} g5 55. hxg5+ {[%emt 0:00:35]} Kg6 {[%emt 0:00:05]} 56. Rb5 {[%emt 0:01:10]} Bd2 {[%emt 0:00:49]} 57. Kg3 {[%emt 0:00:37]} Bb4 {[%emt 0:01:13]} 58. Rd5 {[%emt 0:03:42]} Bc3 {[%emt 0:00:26]} 59. Kf4 {[%emt 0:00:27]} Bb4 {[%emt 0:00:33]} 60. Rd7 {[%emt 0:00:48]} a4 {[%emt 0:00:55]} 61. Rd4 {[%emt 0:00:17]} Bc3 {[%emt 0:00:10]} 62. Rxa4 {[%emt 0:00:27]} Bd2+ 63. Kf3 {[%emt 0:00:31]} Kxg5 {[%emt 0:00:28]} 64. Rd4 {[%emt 0:00:07]} Bc1 {[%emt 0:00:19]} 65. Rd5+ {[%emt 0:00:07]} Kg6 {[%emt 0:00:05]} 66. Kg3 {[%emt 0:00:44]} Bg5 {[%emt 0:00:14]} 67. Rd6+ {[%emt 0:00:08]} Kf7 {[%emt 0:00:45]} 68. Kf3 {[%emt 0:00:03]} Ke7 {[%emt 0:00:09]} 69. Ra6 {[%emt 0:00:12]} Kf7 {[%emt 0:00:39]} 70. Ke4 {[%emt 0:00:05]} Be7 {[%emt 0:02:02]} 71. Kf5 {[%emt 0:00:07]} Kg7 {[%emt 0:00:08]} 72. Ra7 {[%emt 0:00:45]} Kf7 {[%emt 0:00:26]} 73. Rb7 {[%emt 0:00:40]} Kf8 {[%emt 0:00:27]} 74. g5 {[%emt 0:00:45]} Bc5 {[%emt 0:00:45]} 75. Rxh7 {[%emt 0:00:06]} Bd4 {[%emt 0:00:18]} 76. Rb7 {[%emt 0:00:08]} Bc3 {[%emt 0:00:34]} 77. Kg6 {[%emt 0:00:06]} Bd2 {[%emt 0:00:09]} 78. Rf7+ {[%emt 0:00:19]} Kg8 {[%emt 0:00:27]} 79. Rd7 {[%emt 0:00:06]} Ba5 {[%emt 0:00:24]} 80. Ra7 {[%emt 0:00:19]} 1-0

[Event "Kragero Resort B 2020"]
[Site "Kragero"]
[Date "2020.02.23"]
[Round "9.11"]
[White "Olsen, William Alexander"]
[Black "Ostensen, Nicolai Maxime"]
[Result "1-0"]
[ECO "D53"]
[WhiteElo "1862"]
[BlackElo "1658"]
[Annotator "NA"]
[PlyCount "81"]
[EventDate "2020.02.19"]
[EventType "swiss"]
[EventCountry "NOR"]
[SourceTitle "playchess.com"]
[Source "ChessBase"]
[SourceQuality "1"]
[TimeControl "5400+30"]

1. d4 {[%emt 0:00:00]} d5 {[%emt 0:00:46]} 2. c4 {[%emt 0:00:00]} e6 {[%emt 0:00:07]} 3. Nc3 {[%emt 0:00:00]} Nf6 {[%emt 0:00:10]} 4. Bg5 {[%emt 0:00:00]} c6 {[%emt 0:01:01]} 5. e3 {[%emt 0:00:04]} h6 {[%emt 0:00:31]} 6. Bh4 {[%emt 0:00:09]} Be7 {[%emt 0:00:17]} 7. Nf3 {[%emt 0:00:08]} Nbd7 {[%emt 0:01:10]} 8. Bd3 {[%emt 0:02:47]} Nb6 {[%emt 0:04:35] D53: Queen's Gambit Declined: 4 Bg5 Be7: Early deviations.} (8... O-O $11) 9. c5 {[%emt 0:04:12]} Nbd7 {[%emt 0:00:52]} 10. b4 {[%emt 0:00:09]} O-O {[%emt 0:03:25]} 11. O-O {[%emt 0:03:00]} Ng4 {[%emt 0:03:01]} 12. Bg3 {[%emt 0:02:51]} f5 {[%emt 0:01:35]} (12... b6 $16 {keeps fighting.}) 13. b5 {[%emt 0:04:35]} Ngf6 {[%emt 0:07:45]} (13... Qa5 $16 {might work better.}) 14. Qa4 {[%emt 0:04:36]} Ne4 {[%emt 0:01:57]} 15. Bxe4 $16 {[%emt 0:07:35] [#]} (15. bxc6 $18 {is the precise move to win.} Nxc3 16. cxb7 Bxb7 17. Qb4) 15... dxe4 $146 {[%emt 0:02:45]} ({Predecessor:} 15... fxe4 16. Nd2 Nb8 17. Bxb8 Rxb8 18. Qxa7 Bd7 19. bxc6 Bxc6 20. Rab1 Ra8 21. Qb6 Qxb6 22. Rxb6 {½-½ (54) Szulgacz,M (1484)-Sobkowski,K (1536) Bydgoszcz 2008}) 16. Nd2 {[%emt 0:01:12]} Nxc5 {[%emt 0:01:02]} 17. Qc4 {[%emt 0:01:28]} Nd3 {[%emt 0:00:55]} 18. bxc6 {[%emt 0:01:53]} bxc6 {[%emt 0:00:08]} 19. f3 {[%emt 0:00:25]} Nb4 {[%emt 0:04:15]} 20. Rfc1 {[%emt 0:02:55]} exf3 {[%emt 0:04:48]} 21. Nxf3 {[%emt 0:01:49]} Bd7 {[%emt 0:02:18]} 22. Ne5 {[%emt 0:03:20]} Kh7 {[%emt 0:06:11]} 23. Rab1 {[%emt 0:05:28]} Nd5 {[%emt 0:04:01]} 24. e4 {[%emt 0:08:53]} Nxc3 {[%emt 0:04:00]} 25. Rxc3 {[%emt 0:00:38]} fxe4 {[%emt 0:01:56]} 26. Qe2 {[%emt 0:00:17]} Bf6 {[%emt 0:06:08]} 27. Qxe4+ {[%emt 0:00:14]} Kg8 {[%emt 0:00:36]} 28. Ng4 {[%emt 0:10:17]} Qa5 {[%emt 0:05:21]} 29. Rc5 {[%emt 0:19:00]} Qd2 {[%emt 0:04:08]} 30. Nxf6+ {[%emt 0:03:55]} Rxf6 {[%emt 0:00:31]} 31. Rc2 {[%emt 0:01:08]} Qa5 {[%emt 0:00:11]} 32. Be5 {[%emt 0:00:08]} Rf7 {[%emt 0:00:48]} 33. Rcb2 {[%emt 0:00:19]} Rc8 {[%emt 0:05:57]} 34. Qg6 {[%emt 0:01:25]} Qd8 {[%emt 0:06:39]} 35. Rb7 {[%emt 0:03:47]} a5 {[%emt 0:02:38]} 36. Ra7 {[%emt 0:01:59]} Qf8 {[%emt 0:01:51]} 37. h3 {[%emt 0:01:17]} Qe8 {[%emt 0:04:26]} 38. Kh2 {[%emt 0:01:13]} c5 {[%emt 0:00:56]} 39. Rf1 {[%emt 0:00:50]} Re7 {[%emt 0:00:28]} 40. Qxe8+ {[%emt 0:00:14]} Rcxe8 {[%emt 0:00:12]} 41. Bd6 {[%emt 0:00:11]} 1-0

[Event "Kragero Resort B 2020"]
[Site "Kragero"]
[Date "2020.02.23"]
[Round "9.12"]
[White "Berg, Thomas"]
[Black "Skogli, Paal"]
[Result "1/2-1/2"]
[ECO "C01"]
[WhiteElo "1636"]
[BlackElo "1801"]
[Annotator "NA"]
[PlyCount "65"]
[EventDate "2020.02.19"]
[EventType "swiss"]
[EventCountry "NOR"]
[SourceTitle "playchess.com"]
[Source "ChessBase"]
[SourceQuality "1"]
[TimeControl "5400+30"]

{[%evp 8,54,10,32767,32767,32767,32767,32767,32767,32767,6,32767,32767,-12,7,32767,32767,32767,4,0,22,32767,32767,25,14,21,19,26,51,49,45,38,66,47,27,59,60,43,61,39,65,56,84,30,70,51,74,63,126]} 1. e4 {[%emt 0:00:00]} e6 {[%emt 0:00:00]} 2. d4 {[%emt 0:00:00]} d5 {[%emt 0:00:00]} 3. exd5 {[%emt 0:00:01]} exd5 {[%emt 0:00:00]} 4. Nf3 {[%emt 0:00:47]} Nf6 {[%emt 0:00:00]} 5. h3 {[%emt 0:01:32]} Bd6 {[%emt 0:00:00]} 6. Bd3 {[%emt 0:00:18] C01: French: Exchange Variation.} Nc6 {[%emt 0:00:56]} 7. c3 {[%emt 0:00:40]} Be6 {[%emt 0:00:10]} 8. Be3 {[%emt 0:00:24]} Qd7 {[%emt 0:00:10]} 9. Nbd2 {[%emt 0:00:48]} h6 {[%emt 0:00:23] [#]} 10. Qb3 $146 {[%emt 0:04:02]} ({Predecessor:} 10. Nb3 Qe7 11. Qd2 a6 12. a4 Ne4 13. Qc2 f5 14. g3 Rf8 15. Qc1 g5 16. h4 {0-1 (28) Boeru,D (1035)-Nicolae,D (1271) Calimanesti 2015}) 10... Na5 {[%emt 0:00:33]} 11. Qb5 {[%emt 0:00:47]} Qxb5 {[%emt 0:00:34]} 12. Bxb5+ {[%emt 0:00:02]} c6 {[%emt 0:00:32]} 13. Bd3 {[%emt 0:00:25]} b6 {[%emt 0:00:29]} 14. b4 {[%emt 0:02:58]} Nb7 {[%emt 0:00:02]} 15. a4 {[%emt 0:01:32]} a5 {[%emt 0:00:03]} 16. b5 {[%emt 0:02:13]} c5 {[%emt 0:00:36]} 17. O-O {[%emt 0:00:27]} g5 {[%emt 0:01:54]} 18. Ne5 {[%emt 0:04:53]} Bxe5 {[%emt 0:00:03]} 19. dxe5 {[%emt 0:00:06]} Nd7 {[%emt 0:00:19]} 20. f4 {[%emt 0:02:00]} c4 {[%emt 0:02:44]} 21. Bc2 {[%emt 0:00:25]} gxf4 {[%emt 0:00:22]} 22. Bxf4 {[%emt 0:00:18]} Nbc5 {[%emt 0:01:08]} 23. Nf3 {[%emt 0:01:23]} O-O-O {[%emt 0:02:12]} 24. Nd4 {[%emt 0:01:20]} Rdg8 {[%emt 0:00:40]} 25. Nc6 {[%emt 0:03:12]} (25. Nf5 $16) 25... Kc7 {[%emt 0:00:01]} 26. Kh2 {[%emt 0:01:01]} Re8 {[%emt 0:01:44]} 27. Rad1 {[%emt 0:03:21]} Nd3 $16 {[%emt 0:02:55]} ({Better is} 27... Nb3 $14) 28. Bxd3 {[%emt 0:03:14]} cxd3 {[%emt 0:00:02]} 29. Be3 {[%emt 0:02:00]} Nc5 {[%emt 0:03:09]} 30. Bxc5 {[%emt 0:02:08]} bxc5 {[%emt 0:00:01]} 31. Rxd3 {[%emt 0:04:46]} Kb6 {[%emt 0:00:20]} 32. Rf6 {[%emt 0:03:53]} h5 {[%emt 0:01:13]} 33. Rg3 {[%emt 0:11:26]} 1/2-1/2